fUST/lending_fUST_20250908
["ID","MTS","AMOUNT","RATE_DAILY","PERIOD"]
[384136244,1757271044320,-480.0,0.00014246,2]
[384136245,1757271044329,-180.0,0.00014246,2]
[384136247,1757271044339,-302.0,0.00014246,2]
[384136249,1757271044348,-922.0,0.00014246,2]
[384136251,1757271044358,-500.0,0.00014246,2]
[384136253,1757271044367,-480.0,0.00014246,2]
[384136255,1757271044376,-881.65,0.00014246,2]
[384136257,1757271044387,-480.0,0.00014246,2]
[384136259,1757271044396,-841.82,0.00014246,2]
[384136261,1757271044406,-703.75,0.00014246,2]
[384136263,1757271044415,-3387.99,0.00014246,2]
[384136265,1757271044425,-545.56,0.00014246,2]
[384136267,1757271044434,-521.35,0.00014246,2]
[384136269,1757271044444,-1823.45,0.00014246,2]
[384136270,1757271044453,-3255.69,0.00014246,2]
[384136272,1757271044462,-190.027662,0.00014246,2]
[384136274,1757271044471,-480.0,0.00014246,2]
[384136276,1757271044480,-480.0,0.00014246,2]
[384136278,1757271044490,-480.0,0.00014246,2]
[384136280,1757271044499,-1998.45,0.00014246,2]
[384136282,1757271044508,-151.0,0.00014246,2]
[384136284,1757271044518,-151.0,0.00014246,2]
[384136286,1757271044528,-658.66,0.00014246,2]
[384136288,1757271044537,-3045.4,0.00014246,2]
[384136290,1757271044547,-975.08,0.00014246,2]
[384136292,1757271044556,-911.6,0.00014246,2]
[384136294,1757271044566,-151.0,0.00014246,2]
[384136296,1757271044575,-875.17,0.00014246,2]
[384136298,1757271044585,-545.52,0.00014246,2]
[384136300,1757271044595,-480.0,0.00014246,2]
[384136302,1757271044604,-151.0,0.00014246,2]
[384136304,1757271044614,-151.0,0.00014246,2]
[384136306,1757271044624,-151.0,0.00014246,2]
[384136308,1757271044638,-151.0,0.00014246,2]
[384136310,1757271044648,-802.33,0.00014246,2]
[384136312,1757271044657,-151.0,0.00014246,2]
[384136314,1757271044667,-151.0,0.00014246,2]
[384136316,1757271044677,-282.574532,0.00014246,2]
[384136318,1757271044687,-1044.84,0.00014246,2]
[384136320,1757271044696,-480.0,0.00014246,2]
[384136322,1757271044706,-2189.61,0.00014246,2]
[384136324,1757271044716,-3458.11,0.00014246,2]
[384136326,1757271044725,-25979.17,0.00014246,2]
[384136328,1757271044735,-1400.05,0.00014246,2]
[384136330,1757271044744,-151.0,0.00014246,2]
[384136332,1757271044754,-151.0,0.00014246,2]
[384136334,1757271044763,-151.0,0.00014246,2]
[384136336,1757271044772,-151.0,0.00014246,2]
[384136338,1757271044781,-480.0,0.00014246,2]
[384136340,1757271044790,-480.0,0.00014246,2]
[384136342,1757271044800,-480.0,0.00014246,2]
[384136344,1757271044809,-480.0,0.00014246,2]
[384136346,1757271044819,-3135.5,0.00014246,2]
[384136348,1757271044828,-480.0,0.00014246,2]
[384136350,1757271044838,-1226.14,0.00014246,2]
[384136352,1757271044847,-497.87,0.00014246,2]
[384136354,1757271044857,-151.0,0.00014246,2]
[384136356,1757271044867,-161.177037,0.00014246,2]
[384136358,1757271044878,-161.177037,0.00014246,2]
[384136360,1757271044888,-239.648101,0.00014246,2]
[384136362,1757271044897,-9500.83,0.00014246,2]
[384136364,1757271044907,-239.648101,0.00014246,2]
[384136366,1757271044917,-161.177037,0.00014246,2]
[384136368,1757271044927,-161.177037,0.00014246,2]
[384136370,1757271044936,-4433.191598,0.00014246,2]
[384136373,1757271044949,-1056.23457569,0.00014246,2]
[384136507,1757271046275,-480.0,0.00013698,2]
[384136509,1757271046286,-409.0,0.00013945,2]
[384136511,1757271046295,-488.37382631,0.00014246,2]
[384136513,1757271046304,-239.648101,0.00014246,2]
[384136515,1757271046315,-239.648101,0.00014246,2]
[384136517,1757271046325,-161.177037,0.00014246,2]
[384136519,1757271046335,-693.53,0.00014246,2]
[384136521,1757271046344,-161.177037,0.00014246,2]
[384136523,1757271046354,-239.648101,0.00014246,2]
[384136525,1757271046363,-1343.21,0.00014246,2]
[384136527,1757271046372,-239.648101,0.00014246,2]
[384136529,1757271046381,-161.177037,0.00014246,2]
[384136531,1757271046391,-161.177034,0.00014246,2]
[384136533,1757271046400,-480.0,0.00014246,2]
[384136535,1757271046411,-239.648101,0.00014246,2]
[384136537,1757271046420,-239.648107,0.00014246,2]
[384136548,1757271046430,-480.0,0.00014246,2]
[384136550,1757271046533,-1877.94,0.00014246,2]
[384136552,1757271046543,-226.18382432,0.00014246,2]
[384136554,1757271046555,-538.66493114,0.00014246,2]
[384136557,1757271046567,-1796.25124454,0.00014246,2]
[384136559,1757271046578,-480.0,0.00014246,2]
[384136561,1757271046587,-480.0,0.00014246,2]
[384136563,1757271046598,-802.04,0.00014246,2]
[384136565,1757271046608,-1395.36,0.00014246,2]
[384136567,1757271046617,-2188.5,0.00014246,2]
[384136569,1757271046628,-480.0,0.00014246,2]
[384136570,1757271046644,-157.0,0.00014246,2]
[384136572,1757271046653,-584.93,0.00014246,2]
[384136574,1757271046663,-1096.72,0.00014246,2]
[384136576,1757271046672,-1749.11,0.00014246,2]
[384136578,1757271046683,-1445.58,0.00014246,2]
[384136580,1757271046692,-972.3,0.00014246,2]
[384136582,1757271046702,-490.31,0.00014246,2]
[384136584,1757271046712,-594.19,0.00014246,2]
[384136586,1757271046723,-605.96,0.00014246,2]
[384136588,1757271046733,-829.4,0.00014246,2]
[384136590,1757271046742,-874.89,0.00014246,2]
[384136592,1757271046752,-2351.8,0.00014246,2]
[384136593,1757271046761,-335.10004,0.00014246,2]
[384136594,1757271046771,-480.0,0.00014246,2]
[384136595,1757271046779,-335.10004,0.00014246,2]
[384136596,1757271046788,-335.10004,0.00014246,2]
[384136597,1757271046799,-335.10004,0.00014246,2]
[384136598,1757271046808,-493.1,0.00014246,2]
[384136599,1757271046817,-514.69,0.00014246,2]
[384136600,1757271046827,-335.10004,0.00014246,2]
[384136601,1757271046836,-335.10004,0.00014246,2]
[384136602,1757271046845,-335.10004,0.00014246,2]
[384136603,1757271046855,-335.100046,0.00014246,2]
[384136604,1757271046865,-573.48,0.00014246,2]
[384136606,1757271046875,-535.35,0.00014246,2]
[384136608,1757271046884,-480.0,0.00014246,2]
[384136610,1757271046893,-180.0,0.00014246,2]
[384136612,1757271046902,-2357.02,0.00014246,2]
[384136614,1757271046911,-767.54,0.00014246,2]
[384136616,1757271046921,-4911.28,0.00014246,2]
[384136618,1757271046930,-480.0,0.00014246,2]
[384136620,1757271046939,-667.53,0.00014246,2]
[384136621,1757271046948,-786.4,0.00014246,2]
[384136624,1757271046958,-151.0,0.00014246,2]
[384136626,1757271046967,-273.903712,0.00014246,2]
[384136628,1757271046977,-480.0,0.00014246,2]
[384136630,1757271046986,-816.11,0.00014246,2]
[384136632,1757271046995,-501.31,0.00014246,2]
[384136634,1757271047005,-480.0,0.00014246,2]
[384136636,1757271047014,-480.0,0.00014246,2]
[384136638,1757271047023,-602.59,0.00014246,2]
[384136640,1757271047032,-1897.93177843,0.00014246,2]
[384136642,1757271047042,-1041.0984307,0.00014247,2]
[384136644,1757271047051,-151.0,0.000143,2]
[384136646,1757271047061,-151.0,0.000143,2]
[384136648,1757271047070,-168.0,0.00014337,2]
[384136650,1757271047079,-203.88805903,0.00014353,2]
[384136652,1757271047089,-168.0,0.00014359,2]
[384136654,1757271047098,-166.0,0.0001438,2]
[384136656,1757271047107,-166.0,0.0001438,2]
[384136658,1757271047116,-166.0,0.0001438,2]
[384136660,1757271047126,-166.0,0.0001438,2]
[384136662,1757271047137,-172.0,0.0001438,2]
[384136664,1757271047146,-161.0,0.0001438,2]
[384136666,1757271047155,-1304.0,0.0001438,2]
[384136668,1757271047165,-161.0,0.0001438,2]
[384136670,1757271047174,-1304.0,0.0001438,2]
[384136672,1757271047183,-161.0,0.0001438,2]
[384136674,1757271047193,-1304.0,0.0001438,2]
[384136676,1757271047202,-175.16903563,0.0001438,2]
[384136678,1757271047211,-1304.0,0.0001438,2]
[384136680,1757271047220,-1304.0,0.0001438,2]
[384136682,1757271047230,-156.0,0.0001438,2]
[384136684,1757271047240,-1304.0,0.0001438,2]
[384136686,1757271047249,-156.0,0.0001438,2]
[384136687,1757271047258,-1304.0,0.0001438,2]
[384136690,1757271047268,-156.0,0.0001438,2]
[384136692,1757271047279,-1304.0,0.0001438,2]
[384136693,1757271047289,-156.0,0.0001438,2]
[384136695,1757271047298,-411.98141287,0.0001438,2]
[384136698,1757271047310,-892.01858713,0.0001438,2]
[384136700,1757271047319,-154.11709181,0.0001438,2]
[384136702,1757271047328,-1304.0,0.0001438,2]
[384136704,1757271047338,-1304.0,0.0001438,2]
[384136706,1757271047348,-1304.0,0.0001438,2]
[384136708,1757271047357,-1304.0,0.0001438,2]
[384136710,1757271047367,-1304.0,0.0001438,2]
[384136712,1757271047376,-1304.0,0.0001438,2]
[384136714,1757271047386,-1304.0,0.0001438,2]
[384136716,1757271047395,-1304.0,0.0001438,2]
[384136718,1757271047404,-1304.0,0.0001438,2]
[384136720,1757271047414,-343.71936918,0.0001438,2]
[384136722,1757271047424,-1304.0,0.0001438,2]
[384136724,1757271047433,-166.0,0.00014385,2]
[384136726,1757271047443,-166.0,0.00014385,2]
[384136728,1757271047452,-503.18966461,0.00014385,2]
[384136730,1757271047469,-800.81033539,0.00014385,2]
[384136732,1757271047478,-2000.0,0.000144,2]
[384136734,1757271047489,-151.0,0.000144,2]
[384136736,1757271047498,-151.0,0.000144,2]
[384136738,1757271047507,-151.0,0.000144,2]
[384136740,1757271047517,-151.0,0.000144,2]
[384136742,1757271047526,-922.0,0.0001452,2]
[384136744,1757271047537,-500.0,0.0001452,2]
[384136746,1757271047546,-480.0,0.0001452,2]
[384136748,1757271047556,-163.67901248,0.0001452,2]
[384136751,1757271047569,-316.32098752,0.0001452,2]
[384136753,1757271047579,-623.35,0.0001452,2]
[384136755,1757271047588,-480.0,0.0001452,2]
[384136757,1757271047597,-686.32,0.0001452,2]
[384136759,1757271047606,-480.0,0.0001452,2]
[384136761,1757271047615,-480.0,0.0001452,2]
[384136763,1757271047625,-480.0,0.0001452,2]
[384136765,1757271047639,-480.0,0.0001452,2]
[384136767,1757271047648,-480.0,0.0001452,2]
[384136769,1757271047657,-516.01,0.0001452,2]
[384136771,1757271047667,-480.0,0.0001452,2]
[384136773,1757271047677,-670.79,0.0001452,2]
[384136775,1757271047687,-480.0,0.0001452,2]
[384136777,1757271047696,-480.0,0.0001452,2]
[384136779,1757271047706,-480.0,0.0001452,2]
[384136781,1757271047716,-560.92,0.0001452,2]
[384136783,1757271047726,-429.82470483,0.0001452,2]
[384136785,1757271047737,-480.1,0.0001452,2]
[384136787,1757271047746,-480.0,0.0001452,2]
[384136789,1757271047757,-480.0,0.0001452,2]
[384136791,1757271047766,-671.25,0.0001452,2]
[384136793,1757271047776,-592.07,0.0001452,2]
[384136795,1757271047787,-480.0,0.0001452,2]
[384136797,1757271047796,-480.0,0.0001452,2]
[384136799,1757271047805,-480.0,0.0001452,2]
[384136801,1757271047815,-513.67,0.0001452,2]
[384136803,1757271047824,-576.54,0.0001452,2]
[384136805,1757271047834,-934.18,0.0001452,2]
[384136806,1757271047843,-594.82,0.0001452,2]
[384136808,1757271047852,-1039.63,0.0001452,2]
[384136810,1757271047861,-480.0,0.0001452,2]
[384136812,1757271047871,-507.35,0.0001452,2]
[384136814,1757271047880,-385.4008601,0.0001452,2]
[384136816,1757271047890,-480.0,0.0001452,2]
[384136818,1757271047899,-480.0,0.0001452,2]
[384136820,1757271047908,-881.65,0.0001452,2]
[384136822,1757271047918,-480.0,0.0001452,2]
[384136824,1757271047927,-703.75,0.0001452,2]
[384136826,1757271047936,-545.56,0.0001452,2]
[384136828,1757271047945,-521.35,0.0001452,2]
[384136830,1757271047955,-1823.45,0.0001452,2]
[384136832,1757271047964,-3255.69,0.0001452,2]
[384136834,1757271047973,-480.0,0.0001452,2]
[384136836,1757271047982,-480.0,0.0001452,2]
[384136838,1757271047991,-480.0,0.0001452,2]
[384136840,1757271048000,-1998.45,0.0001452,2]
[384136842,1757271048009,-658.66,0.0001452,2]
[384136844,1757271048018,-3045.4,0.0001452,2]
[384136846,1757271048028,-975.08,0.0001452,2]
[384136848,1757271048037,-911.6,0.0001452,2]
[384136850,1757271048047,-875.17,0.0001452,2]
[384136852,1757271048057,-480.0,0.0001452,2]
[384136853,1757271048066,-545.52,0.0001452,2]
[384136855,1757271048075,-802.33,0.0001452,2]
[384136857,1757271048085,-1044.84,0.0001452,2]
[384136859,1757271048095,-480.0,0.0001452,2]
[384136861,1757271048104,-2189.61,0.0001452,2]
[384136863,1757271048114,-3458.11,0.0001452,2]
[384136865,1757271048123,-25979.17,0.0001452,2]
[384136867,1757271048134,-1400.05,0.0001452,2]
[384136869,1757271048144,-480.0,0.0001452,2]
[384136871,1757271048155,-434.13845708,0.0001452,2]
[384136874,1757271048167,-260.48867014,0.0001452,2]
[384136876,1757271048176,-480.0,0.0001452,2]
[384136878,1757271048186,-3135.5,0.0001452,2]
[384136880,1757271048195,-480.0,0.0001452,2]
[384136882,1757271048205,-1226.14,0.0001452,2]
[384136884,1757271048215,-497.87,0.0001452,2]
[384136885,1757271048225,-9500.83,0.0001452,2]
[384136896,1757271048321,-5977.8,0.0001452,2]
[384136898,1757271048331,-654.50117064,0.0001452,2]
[384136900,1757271048343,-39.02882936,0.0001452,2]
[384136902,1757271048353,-1343.21,0.0001452,2]
[384136904,1757271048364,-480.0,0.0001452,2]
[384136906,1757271048374,-480.0,0.0001452,2]
[384136908,1757271048385,-1877.94,0.0001452,2]
[384136910,1757271048394,-2561.1,0.0001452,2]
[384136912,1757271048404,-480.0,0.0001452,2]
[384136914,1757271048414,-480.0,0.0001452,2]
[384136916,1757271048424,-802.04,0.0001452,2]
[384136918,1757271048434,-1395.36,0.0001452,2]
[384136920,1757271048443,-2188.5,0.0001452,2]
[384136922,1757271048453,-480.0,0.0001452,2]
[384136924,1757271048463,-584.93,0.0001452,2]
[384136926,1757271048472,-15.52204859,0.0001452,2]
[384136928,1757271048485,-419.28094227,0.0001452,2]
[384148918,1757271242437,300.0,0.00013597,2]
[384148919,1757271275446,373.36982977,0.00013597,2]
[384148920,1757271275481,500.0,0.00013597,2]
[384148921,1757271275522,500.0,0.00013597,2]
[384148922,1757271275556,491.09966679,0.00013597,2]
[384148923,1757271275594,500.0,0.00013597,2]
[384148924,1757271275628,500.0,0.00013597,2]
[384148925,1757271275663,500.0,0.00013597,2]
[384148926,1757271275700,500.0,0.00013597,2]
[384148927,1757271275735,500.0,0.00013597,2]
[384148928,1757271275770,500.0,0.00013597,2]
[384148929,1757271275826,500.0,0.00013597,2]
[384148930,1757271275863,500.0,0.00013597,2]
[384148931,1757271275903,500.0,0.00013597,2]
[384148932,1757271275938,500.0,0.00013597,2]
[384148933,1757271275972,500.0,0.00013597,2]
[384148934,1757271276010,500.0,0.00013597,2]
[384148935,1757271276052,500.0,0.00013597,2]
[384148936,1757271276094,500.0,0.00013597,2]
[384148937,1757271276129,500.0,0.00013597,2]
[384148938,1757271276184,500.0,0.00013597,2]
[384148939,1757271276228,500.0,0.00013597,2]
[384148940,1757271276272,500.0,0.00013597,2]
[384148941,1757271276320,500.0,0.00013597,2]
[384148942,1757271276359,500.0,0.00013597,2]
[384148943,1757271276404,500.0,0.00013597,2]
[384148944,1757271276439,500.0,0.00013597,2]
[384148945,1757271276486,500.0,0.00013597,2]
[384148946,1757271276525,500.0,0.00013597,2]
[384148947,1757271276565,500.0,0.00013597,2]
[384148948,1757271276604,500.0,0.00013597,2]
[384148949,1757271276769,500.0,0.00013597,2]
[384148950,1757271276810,500.0,0.00013597,2]
[384148951,1757271276848,455.50699509,0.00013597,2]
[384148952,1757271276887,500.0,0.00013597,2]
[384148953,1757271276933,500.0,0.00013597,2]
[384148954,1757271276970,500.0,0.00013597,2]
[384148955,1757271277005,500.0,0.00013597,2]
[384148956,1757271277057,500.0,0.00013597,2]
[384148957,1757271277101,500.0,0.00013597,2]
[384148958,1757271277140,500.0,0.00013597,2]
[384148959,1757271277186,500.0,0.00013597,2]
[384148960,1757271277228,500.0,0.00013597,2]
[384148961,1757271277311,500.0,0.00013597,2]
[384148962,1757271277386,248.40776722,0.00013597,2]
[384148963,1757271277445,500.0,0.00013597,2]
[384148964,1757271277485,500.0,0.00013597,2]
[384148965,1757271284354,500.0,0.00013597,2]
[384148966,1757271284388,500.0,0.00013597,2]
[384148967,1757271284424,500.0,0.00013597,2]
[384148968,1757271284461,500.0,0.00013597,2]
[384148969,1757271284508,515.14565245,0.00013597,2]
[384148970,1757271284541,239.88106416,0.00013597,2]
[384148971,1757271294359,500.0,0.00013597,2]
[384148972,1757271294394,500.0,0.00013597,2]
[384148973,1757271294429,500.0,0.00013597,2]
[384148974,1757271294464,500.0,0.00013597,2]
[384148975,1757271294499,500.0,0.00013597,2]
[384148976,1757271294533,500.0,0.00013597,2]
[384148977,1757271294567,500.0,0.00013597,2]
[384148978,1757271294601,500.0,0.00013597,2]
[384148979,1757271294636,500.0,0.00013597,2]
[384148980,1757271294673,500.0,0.00013597,2]
[384148981,1757271294708,500.0,0.00013597,2]
[384148982,1757271294743,500.0,0.00013597,2]
[384148983,1757271294779,201.78863927,0.00013597,2]
[384148984,1757271294813,500.0,0.00013597,2]
[384148985,1757271294859,500.0,0.00013597,2]
[384148986,1757271294898,500.0,0.00013597,2]
[384148987,1757271294934,500.0,0.00013597,2]
[384148988,1757271294968,500.0,0.00013597,2]
[384148989,1757271295002,500.0,0.00013597,2]
[384148990,1757271295038,500.0,0.00013597,2]
[384148991,1757271295076,500.0,0.00013597,2]
[384148992,1757271295110,500.0,0.00013597,2]
[384148993,1757271295146,500.0,0.00013597,2]
[384148994,1757271295182,213.07312749,0.00013597,2]
[384148995,1757271295475,500.0,0.00013597,2]
[384148996,1757271295508,500.0,0.00013597,2]
[384148997,1757271295549,500.0,0.00013597,2]
[384148998,1757271295584,500.0,0.00013597,2]
[384148999,1757271295625,500.0,0.00013597,2]
[384149000,1757271295661,500.0,0.00013597,2]
[384149001,1757271295696,500.0,0.00013597,2]
[384149002,1757271295731,500.0,0.00013597,2]
[384149003,1757271295774,500.0,0.00013597,2]
[384149004,1757271295809,500.0,0.00013597,2]
[384149005,1757271295849,500.0,0.00013597,2]
[384149006,1757271295893,500.0,0.00013597,2]
[384149007,1757271295935,500.0,0.00013597,2]
[384149008,1757271295972,500.0,0.00013597,2]
[384149009,1757271296010,500.0,0.00013597,2]
[384149010,1757271302647,300.0,0.00013597,2]
[384149011,1757271302895,1200.0,0.00013597,2]
[384149013,1757271362955,300.0,0.00013597,2]
[384149014,1757271369025,250.78331444,0.00013598,2]
[384149016,1757271377650,200.0,0.00013597,2]
[384149018,1757271387176,200.0,0.00013597,2]
[384149019,1757271397664,200.0,0.00013597,2]
[384149021,1757271407229,263.39626906,0.00013597,2]
[384149023,1757271422272,300.0,0.00013597,2]
[384149024,1757271431937,336.0,0.00013597,2]
[384149028,1757271445428,500.0,0.00013597,2]
[384149029,1757271463227,500.0,0.00013597,2]
[384149030,1757271481022,493.32997603,0.00013597,2]
[384149031,1757271483324,300.0,0.00013597,2]
[384149033,1757271498821,370.38050444,0.00013597,2]
[384149034,1757271507560,253.15891827,0.00013597,2]
[384149035,1757271516599,357.52932422,0.00013597,2]
[384149036,1757271534375,534.45662852,0.00013597,2]
[384149041,1757271542652,300.0,0.00013597,2]
[384149043,1757271552176,351.28780217,0.00013597,2]
[384149049,1757271662852,300.0,0.00013597,2]
[384149129,1757271722869,300.0,0.00013597,2]
[384149133,1757271745726,1465.08391226,0.00013462,2]
[384149134,1757271753703,407.24819139,0.00013462,2]
[384149136,1757271762665,300.0,0.00013462,2]
[384149137,1757271782714,300.0,0.00013597,2]
[384149140,1757271842687,300.0,0.00013597,2]
[384149142,1757271902556,300.0,0.00013597,2]
[384149180,1757271962716,300.0,0.00013597,2]
[384149184,1757271971662,17.3551592,0.00013598,2]
[384149185,1757271971684,4028.33109158,0.00013598,2]
[384149205,1757272083326,300.0,0.00013597,2]
[384149206,1757272107664,5671.67890842,0.00013462,2]
[384149207,1757272107689,486.90567603,0.00013462,2]
[384149209,1757272130777,6252.91229619,0.00013462,2]
[384149210,1757272139356,500.0,0.0001352,2]
[384149211,1757272142663,300.0,0.00013597,2]
[384149212,1757272146505,155.90967631,0.00013462,2]
[384149213,1757272147004,500.0,0.0001352,2]
[384149214,1757272148290,500.0,0.00013597,2]
[384149215,1757272148323,500.0,0.00013597,2]
[384149216,1757272148354,616.67112414,0.00013597,2]
[384149217,1757272148389,187.61122733,0.00013597,2]
[384149218,1757272148412,312.38877267,0.00013597,2]
[384149219,1757272148444,319.15497083,0.00013597,2]
[384149220,1757272148480,500.0,0.00013597,2]
[384149221,1757272148511,500.0,0.00013597,2]
[384149222,1757272148540,500.0,0.00013597,2]
[384149223,1757272148571,500.0,0.00013597,2]
[384149224,1757272148609,500.0,0.00013597,2]
[384149225,1757272148640,500.0,0.00013597,2]
[384149226,1757272155079,500.0,0.0001352,2]
[384149227,1757272160238,500.0,0.00013597,2]
[384149228,1757272160265,500.0,0.00013597,2]
[384149229,1757272160296,500.0,0.00013597,2]
[384149230,1757272160322,500.0,0.00013597,2]
[384149231,1757272160348,500.0,0.00013597,2]
[384149232,1757272160375,500.0,0.00013597,2]
[384149233,1757272160413,500.0,0.00013597,2]
[384149234,1757272160448,643.48487624,0.00013597,2]
[384149235,1757272160495,500.0,0.00013597,2]
[384149236,1757272162806,500.0,0.0001352,2]
[384149237,1757272170592,500.0,0.0001352,2]
[384149238,1757272178548,502.82816846,0.0001352,2]
[384149240,1757272202411,300.0,0.00013597,2]
[384149241,1757272202627,300.0,0.00013597,2]
[384149242,1757272203354,1200.0,0.00013597,2]
[384149243,1757272214698,631.403416,0.0001319,2]
[384149244,1757272215022,539.06234549,0.00013287,2]
[384149245,1757272215529,236.141208,0.00013287,2]
[384149280,1757272232357,-3069.48214884,0.00013598,2]
[384149287,1757272232410,-134489.50364941,0.00013598,2]
[384149288,1757272232466,-418.22366975,0.00013598,2]
[384149304,1757272238263,-279.1932476,0.00013598,2]
[384149305,1757272238273,-307.80310049,0.00013697,2]
[384149306,1757272238282,-408.25857521,0.00013697,2]
[384149307,1757272238316,-90.06861297,0.00013697,2]
[384149308,1757272238325,-480.0,0.00013698,2]
[384149309,1757272238335,-480.0,0.00013698,2]
[384149310,1757272238344,-369.86708968,0.00013698,2]
[384149311,1757272238353,-480.0,0.00013698,2]
[384149312,1757272238363,-480.0,0.00013698,2]
[384149313,1757272238376,-480.0,0.00013698,2]
[384149314,1757272238386,-480.0,0.00013698,2]
[384149315,1757272238395,-480.0,0.00013698,2]
[384149316,1757272238404,-480.0,0.00013698,2]
[384149317,1757272238413,-310.27081167,0.00013698,2]
[384149318,1757272238422,-480.0,0.00013698,2]
[384149320,1757272238431,-480.0,0.00013698,2]
[384149322,1757272238440,-370.71618006,0.00013698,2]
[384149323,1757272238452,-109.28381994,0.00013698,2]
[384149324,1757272238462,-482.11932971,0.00013698,2]
[384149325,1757272238471,-480.0,0.00013698,2]
[384149326,1757272238481,-386.27620585,0.00013698,2]
[384149327,1757272238493,-93.72379415,0.00013698,2]
[384149328,1757272238503,-480.0,0.00013698,2]
[384149329,1757272238512,-70.29969247,0.00013698,2]
[384149397,1757272240359,-409.70030753,0.00013698,2]
[384149398,1757272240371,-480.0,0.00013698,2]
[384149399,1757272240382,-480.0,0.00013698,2]
[384149400,1757272240392,-480.0,0.00013698,2]
[384149401,1757272240402,-411.95930605,0.00013698,2]
[384149402,1757272240411,-480.0,0.00013698,2]
[384149403,1757272240421,-480.0,0.00013698,2]
[384149404,1757272240431,-480.0,0.00013698,2]
[384149405,1757272240440,-480.0,0.00013698,2]
[384149406,1757272240450,-480.0,0.00013698,2]
[384149407,1757272240459,-480.0,0.00013698,2]
[384149408,1757272240469,-480.0,0.00013698,2]
[384149409,1757272240478,-480.0,0.00013698,2]
[384149410,1757272240487,-480.0,0.00013698,2]
[384149411,1757272240496,-480.0,0.00013698,2]
[384149412,1757272240505,-429.68110971,0.00013698,2]
[384149413,1757272240514,-480.0,0.00013698,2]
[384149414,1757272240524,-480.0,0.00013698,2]
[384149415,1757272240534,-480.0,0.00013698,2]
[384149416,1757272240543,-480.0,0.00013698,2]
[384149417,1757272240553,-508.2,0.00013698,2]
[384149418,1757272240562,-515.68,0.00013698,2]
[384149419,1757272240571,-480.0,0.00013698,2]
[384149420,1757272240581,-480.0,0.00013698,2]
[384149421,1757272240590,-480.0,0.00013698,2]
[384149422,1757272240599,-480.0,0.00013698,2]
[384149423,1757272240609,-480.0,0.00013698,2]
[384149424,1757272240618,-480.0,0.00013698,2]
[384149425,1757272240628,-480.0,0.00013698,2]
[384149426,1757272240637,-480.0,0.00013698,2]
[384149427,1757272240647,-480.0,0.00013698,2]
[384149428,1757272240656,-480.0,0.00013698,2]
[384149429,1757272240667,-286.14,0.00013698,2]
[384149430,1757272240677,-512.5,0.00013698,2]
[384149431,1757272240686,-548.88,0.00013698,2]
[384149432,1757272240696,-480.0,0.00013698,2]